bitfinex-derivatives/quotes_SOLF0:USTF0_20220102
["timestamp","ask_amount","ask_price","bid_price","bid_amount"]
[1641098164655,14.6916713,177.64,177.57,1.29860672]
[1641098165454,11.99333093,177.63,177.56,1.29860672]
[1641098166256,12.56222504,177.64,177.56,1.29860672]
[1641098167157,11.99336851,177.63,177.56,5.87460672]
[1641098167758,2.69919772,177.64,177.57,1.29860672]
[1641098168063,2.69919772,177.64,177.57,4.29860672]
[1641098168458,43.55790862,177.65,177.57,1.29860672]
[1641098168859,43.55790862,177.65,177.59,5.62508789]
[1641098169259,2.69727638,177.64,177.59,5.62508789]
[1641098170060,31.5718,177.65,177.6,1.29860672]
[1641098170461,14.68368518,177.64,177.56,45.52862969]
[1641098171365,31.5718,177.65,177.57,1.29788044]
[1641098172265,14.69227691,177.64,177.56,40.95262969]
[1641098172765,14.69227691,177.64,177.57,1.2986059]
[1641098173365,43.56430733,177.65,177.57,19.43320637]
[1641098173967,2.6988901,177.64,177.57,25.56620637]
[1641098174167,2.6988901,177.64,177.57,53.23099637]
[1641098174972,43.56430733,177.65,177.58,1.2986059]
[1641098175473,2.69891241,177.64,177.57,39.67141969]
[1641098176074,43.56430733,177.65,177.57,39.67141969]
[1641098176273,43.56430733,177.65,177.57,46.15341969]
[1641098176475,11.99250733,177.64,177.58,1.29861105]
[1641098176975,11.99250733,177.64,177.59,3.0]
[1641098177178,11.99250733,177.64,177.59,8.62492969]
[1641098177377,2.69883877,177.64,177.59,5.62492969]
[1641098177976,43.56417029,177.65,177.59,5.62492969]
[1641098178174,31.5718,177.65,177.61,27.66479]
[1641098178374,31.5718,177.65,177.61,33.40279]
[1641098179576,2.69824875,177.64,177.62,1.29867164]
[1641098180178,31.5718,177.65,177.61,27.66479]
[1641098180777,2.69844323,177.64,177.62,1.29865396]
[1641098181378,31.5718,177.65,177.61,27.66479]
[1641098182078,2.69837949,177.64,177.62,1.29865975]
[1641098182984,31.5718,177.65,177.61,27.66479]
[1641098183882,2.69840746,177.64,177.62,1.29865721]
[1641098184783,11.99119399,177.67,177.61,27.66479]
[1641098185184,2.68911206,177.69,177.61,21.26977706]
[1641098185384,78.04568399,177.7,177.61,21.26977706]
[1641098186087,2.68872436,177.69,177.61,21.26977706]
[1641098186387,2.68872436,177.69,177.63,5.62366438]
[1641098186585,2.68872436,177.69,177.63,10.41266438]
[1641098188589,2.68872436,177.69,177.64,1.29475679]
[1641098189487,2.68872436,177.69,177.63,5.62366438]
[1641098196599,2.68872436,177.69,177.63,13.86366438]
[1641098197900,2.68872436,177.69,177.64,1.29912875]
[1641098201608,2.68872436,177.69,177.66,3.99637412]
[1641098202708,30.35351436,177.69,177.66,3.99637412]
[1641098202909,42.34470835,177.69,177.64,5.29550287]
[1641098203109,47.25170835,177.69,177.64,5.29550287]
[1641098203307,47.25170835,177.69,177.64,3.99637412]
[1641098203508,47.25170835,177.69,177.63,9.6200385]
[1641098203509,2.68872436,177.68,177.63,9.6200385]
[1641098204109,2.68872436,177.68,177.64,5.29456886]
[1641098210617,27.66479,177.66,177.64,5.29456886]
[1641098210816,32.65879,177.66,177.64,5.29456886]
[1641098211718,32.65879,177.66,177.63,9.6200385]
[1641098212220,32.65879,177.66,177.64,5.29456643]
[1641098215225,2.69761668,177.65,177.64,5.29456643]
[1641098218327,14.68881067,177.68,177.64,5.29456643]
[1641098218727,27.66479,177.66,177.64,5.29456643]
[1641098219730,2.69761668,177.65,177.64,5.29456643]
[1641098226441,14.68881067,177.68,177.64,5.29456643]
[1641098235555,3.99666213,177.65,177.64,5.29456643]
[1641098235958,10.42066213,177.65,177.64,5.29456643]
[1641098236759,9.12161668,177.65,177.64,5.29456643]
[1641098238362,6.424,177.65,177.64,1.29819231]
[1641098238565,10.42066366,177.65,177.64,1.29819231]
[1641098239163,10.42066366,177.65,177.64,5.29486073]
[1641098243771,10.42066366,177.65,177.64,1.29819231]
[1641098246073,6.424,177.65,177.63,5.62366438]
[1641098246272,3.0,177.69,177.63,5.62366438]
[1641098246872,3.0,177.69,177.65,3.99661136]
[1641098247073,2.69750913,177.68,177.65,3.99661136]
[1641098247573,3.0,177.69,177.62,27.66479]
[1641098247774,11.99108969,177.67,177.63,5.29609027]
[1641098248673,12.859272,177.69,177.6,33.85675097]
[1641098248876,2.69798199,177.68,177.6,33.85675097]
[1641098249275,11.9911329,177.67,177.63,3.9970443]
[1641098249875,2.69798199,177.68,177.63,1.29905879]
[1641098250476,11.99114473,177.67,177.63,3.99704824]
[1641098251078,2.69798199,177.68,177.6,36.85675097]
[1641098251277,2.69798199,177.68,177.66,3.99654477]
[1641098251479,2.69798199,177.69,177.66,3.99654477]
[1641098252178,5.903,177.7,177.64,1.29910889]
[1641098252380,27.66479,177.71,177.64,1.29910889]
[1641098252580,2.69740017,177.69,177.66,3.99651231]
[1641098252781,8.69640017,177.69,177.66,3.99651231]
[1641098253382,2.69741819,177.68,177.63,1.29911213]
[1641098253781,5.999,177.69,177.66,3.9965256]
[1641098254383,5.999,177.69,177.63,1.29911213]
[1641098254584,2.69743489,177.68,177.63,1.29911213]
[1641098255082,5.999,177.69,177.66,3.99654333]
[1641098256084,2.69738752,177.68,177.63,6.92293464]
[1641098256685,5.999,177.69,177.67,3.99628694]
[1641098257184,5.999,177.69,177.64,1.29911213]
[1641098257484,5.999,177.69,177.66,3.9879131]
[1641098257884,5.999,177.69,177.64,1.29911213]
[1641098258086,2.69181309,177.68,177.64,5.28730466]
[1641098258485,6.411,177.7,177.63,5.62382251]
[1641098259485,2.69173477,177.69,177.64,5.28454731]
[1641098259886,11.96373931,177.71,177.63,5.62382251]
[1641098260488,11.96373931,177.71,177.64,5.28455195]
[1641098261187,11.96373931,177.71,177.63,5.62382251]
[1641098261686,11.96373931,177.71,177.64,5.28452249]
[1641098262486,3.98814315,177.67,177.63,5.62382251]
[1641098263388,5.649,177.68,177.64,5.28450274]
[1641098264088,3.98806243,177.67,177.63,33.28861251]
[1641098264689,3.98793491,177.68,177.65,3.98793491]
[1641098265389,31.6012,177.7,177.63,33.28861251]
[1641098266090,3.98788165,177.68,177.65,3.98788165]
[1641098266689,38.2142,177.7,177.64,1.29641052]
[1641098266890,3.98791343,177.69,177.66,3.98791343]
[1641098267589,38.2142,177.7,177.65,3.98807351]
[1641098267791,3.98807351,177.68,177.65,3.98807351]
[1641098268289,31.6012,177.7,177.63,33.28861251]
[1641098268890,3.98806149,177.68,177.65,3.98806149]
[1641098269392,31.6012,177.7,177.63,33.28861251]
[1641098269792,31.6012,177.7,177.63,5.62382251]
[1641098269991,3.98806623,177.68,177.65,3.98806623]
[1641098271093,31.6012,177.7,177.64,27.66479]
[1641098271291,43.56493931,177.7,177.66,3.99645338]
[1641098271793,31.6012,177.7,177.64,27.66479]
[1641098271991,31.6012,177.7,177.65,1.29911809]
[1641098272994,31.6012,177.7,177.64,27.66479]
[1641098273192,43.59059337,177.7,177.66,3.99646446]
[1641098273694,31.6012,177.7,177.64,27.66479]
[1641098273895,31.6012,177.7,177.65,1.29912046]
[1641098274298,31.6012,177.7,177.64,27.66479]
[1641098274497,49.13016573,177.7,177.65,3.99198858]
[1641098275098,2.69439314,177.69,177.65,1.29765411]
[1641098275701,49.13016573,177.7,177.65,3.99204522]
[1641098276400,49.13016573,177.7,177.64,27.66479]
[1641098276601,2.69439221,177.69,177.65,1.29765419]
[1641098277000,49.13016573,177.7,177.65,3.99205622]
[1641098278408,49.13016573,177.7,177.64,27.66479]
[1641098278602,2.69446581,177.69,177.64,31.65690331]
[1641098279103,37.1542,177.7,177.65,5.28961477]
[1641098279703,2.69428448,177.69,177.64,27.66479]
[1641098280303,37.1542,177.7,177.65,5.28961459]
[1641098280904,37.1542,177.7,177.64,27.66479]
[1641098281104,2.69428261,177.69,177.64,27.66479]
[1641098281306,2.69428261,177.69,177.63,8.82100594]
[1641098281505,37.1542,177.7,177.66,3.99195084]
[1641098282205,2.69428213,177.69,177.64,1.2976642]
[1641098282707,2.69428213,177.69,177.64,28.9624542]
[1641098283006,37.1542,177.7,177.66,3.99196531]
[1641098283509,2.69421266,177.69,177.65,1.29767052]
[1641098284308,37.1542,177.7,177.64,27.66479]
[1641098284509,37.1542,177.7,177.66,3.99189408]
[1641098285109,2.69420483,177.69,177.65,1.29767123]
[1641098285511,37.1542,177.7,177.66,3.99187257]
[1641098286513,3.99186018,177.68,177.64,1.29767282]
[1641098287113,37.1542,177.7,177.64,1.29767282]
[1641098287315,37.1542,177.7,177.67,3.99634504]
[1641098287514,5.553,177.7,177.67,3.99634504]
[1641098287715,11.97596573,177.71,177.67,3.99634504]
[1641098287915,2.69721492,177.69,177.65,1.29767282]
[1641098288515,11.98902159,177.71,177.67,3.99634053]
[1641098289217,11.98902159,177.71,177.63,23.75902405]
[1641098289416,42.35102281,177.71,177.63,23.75902405]
[1641098290016,42.35102281,177.71,177.63,17.6304522]
[1641098290218,2.69721122,177.7,177.66,3.99208322]
[1641098290720,27.66479,177.71,177.64,29.2402]
[1641098291422,2.69482268,177.7,177.66,3.99282078]
[1641098292221,39.65381159,177.71,177.64,29.2402]
[1641098292622,11.98902159,177.71,177.67,5.62239964]
[1641098292822,2.69449518,177.7,177.68,3.99252306]
[1641098293023,2.69449518,177.7,177.68,8.83252306]
[1641098293523,2.69449518,177.7,177.68,36.49731306]
[1641098293724,11.98902159,177.73,177.68,32.50479]
[1641098293928,2.69400523,177.73,177.69,1.29802788]
[1641098294625,29.8021,177.74,177.68,32.50479]
[1641098294825,29.8021,177.74,177.7,3.99204433]
[1641098295425,2.69397068,177.73,177.69,1.29807556]
[1641098296633,29.8021,177.74,177.7,3.99202436]
[1641098297429,2.69413842,177.73,177.68,1.29807775]
[1641098298128,29.8021,177.74,177.67,34.74279964]
[1641098298329,4.859,177.73,177.7,3.99215164]
[1641098298729,4.859,177.73,177.67,34.74279964]
[1641098298929,2.69415887,177.72,177.69,3.99221732]
[1641098299330,29.8021,177.74,177.67,34.74279964]
[1641098299531,29.8021,177.74,177.7,3.99217563]
[1641098299930,29.8021,177.74,177.67,34.74279964]
[1641098300132,2.69424442,177.73,177.69,3.9922951]
[1641098300633,41.79112159,177.74,177.68,27.66479]
[1641098301333,2.69424225,177.73,177.69,5.290344]
[1641098301833,41.79112159,177.74,177.67,34.74279964]
[1641098302335,3.99228885,177.7,177.69,3.99228885]
[1641098303034,41.79112159,177.74,177.67,34.74279964]
[1641098303234,3.99211997,177.71,177.67,34.74279964]
[1641098303434,3.99211997,177.71,177.67,5.62239964]
[1641098304237,3.99220899,177.7,177.69,3.99220899]
[1641098304837,11.98902159,177.73,177.67,5.62239964]
[1641098305441,57.46689,177.74,177.67,5.62239964]
[1641098305739,3.9956326,177.7,177.69,3.9956326]
[1641098306039,69.45378779,177.74,177.67,5.62239964]
[1641098306239,69.45378779,177.74,177.67,9.61079481]
[1641098306640,69.45378779,177.74,177.67,5.62239964]
[1641098306841,3.98823231,177.71,177.68,5.28499969]
[1641098307541,29.8021,177.74,177.67,5.62239964]
[1641098308542,3.98816514,177.71,177.68,5.28493924]
[1641098309143,29.8021,177.74,177.67,5.62239964]
[1641098309944,29.8021,177.74,177.68,3.98812071]
[1641098310146,3.98812071,177.71,177.68,5.28489925]
[1641098310344,10.48112071,177.71,177.68,5.28489925]
[1641098310746,6.493,177.71,177.69,3.98811302]
[1641098311245,10.48115519,177.71,177.68,5.28493028]
[1641098311949,6.493,177.71,177.67,5.62239964]
[1641098312446,10.48115711,177.71,177.68,5.28493201]
[1641098313048,6.493,177.71,177.67,5.62239964]
[1641098313348,3.98832282,177.7,177.67,5.62239964]
[1641098313848,3.98824628,177.71,177.68,5.28501226]
[1641098314449,29.8021,177.74,177.67,5.62239964]
[1641098314648,2.69147506,177.72,177.67,5.62239964]
[1641098315453,3.98824862,177.71,177.68,5.28501437]
[1641098316254,11.98689779,177.75,177.67,5.62239964]
[1641098316454,3.98793703,177.72,177.7,3.98793703]
[1641098317056,3.98776723,177.73,177.68,1.29681389]
[1641098317454,3.98776723,177.73,177.72,5.62097749]
[1641098317653,3.98776723,177.73,177.69,5.62192551]
[1641098318456,2.69114012,177.76,177.71,3.98772868]
[1641098319056,3.98775474,177.74,177.69,5.62192551]
[1641098319661,29.1162,177.77,177.69,5.62192551]
[1641098319857,2.69093652,177.76,177.71,3.98775194]
[1641098320459,3.98614231,177.74,177.69,5.62192551]
[1641098321061,4.344,177.76,177.69,5.62192551]
[1641098321260,3.98640414,177.73,177.69,9.60832965]
[1641098322061,27.66479,177.75,177.69,5.62192551]
[1641098322761,27.66479,177.75,177.71,3.99554497]
[1641098322762,2.69015139,177.74,177.71,3.99554497]
[1641098323562,39.65168779,177.75,177.69,5.62192551]
[1641098324061,2.69633412,177.74,177.71,3.99554317]
[1641098324966,39.65168779,177.75,177.69,5.62192551]
[1641098325465,2.6931176,177.74,177.7,5.28843777]
[1641098326266,27.66479,177.75,177.69,5.62192551]
[1641098326564,27.66479,177.75,177.69,9.61270846]
[1641098326865,2.69302205,177.74,177.7,5.2883596]
[1641098327568,27.66479,177.75,177.7,3.99069083]
[1641098327768,39.65168779,177.75,177.69,9.61268618]
[1641098328368,39.65168779,177.75,177.7,5.2883004]
[1641098328569,2.6929497,177.74,177.7,5.2883004]
[1641098329169,27.66479,177.75,177.69,5.62192551]
[1641098329869,2.69301328,177.74,177.7,5.28835242]
[1641098330271,39.65168779,177.75,177.69,9.61269681]
[1641098331070,2.69312391,177.74,177.69,5.62192551]
[1641098331670,27.66479,177.75,177.7,5.28830946]
[1641098331871,11.98689779,177.76,177.7,5.28830946]
[1641098332372,2.69282691,177.74,177.71,3.99051342]
[1641098332971,14.67982819,177.76,177.7,5.2882846]
[1641098333771,14.67982819,177.76,177.69,5.62192551]
[1641098334471,14.67982819,177.76,177.71,3.99053871]
[1641098334672,2.6929304,177.76,177.71,3.99053871]
[1641098335073,2.6929304,177.76,177.69,5.62192551]
[1641098335775,14.67982819,177.76,177.72,3.99531531]
[1641098335976,42.34461819,177.76,177.72,3.99531531]
[1641098336375,42.34461819,177.76,177.69,5.62192551]
[1641098336574,2.6929304,177.75,177.69,5.62192551]
[1641098337178,39.65168779,177.76,177.71,3.9953512]
[1641098337775,3.99533674,177.72,177.69,5.62192551]
[1641098338677,11.98689779,177.75,177.71,3.99537371]
[1641098339475,27.66479,177.76,177.69,5.62192551]
[1641098339676,2.696108,177.75,177.69,5.62192551]
[1641098340078,39.65080281,177.76,177.71,3.99533703]
[1641098340278,11.98601281,177.76,177.71,3.99533703]
[1641098340879,39.65080281,177.76,177.71,3.99533703]
[1641098341079,39.65080281,177.76,177.69,5.62192551]
[1641098341280,42.34682845,177.76,177.72,3.99526273]
[1641098341678,42.34682845,177.76,177.69,5.62192551]
[1641098341879,42.34682845,177.76,177.71,3.99522368]
[1641098341880,14.68203845,177.75,177.71,3.99522368]
[1641098342680,27.66479,177.76,177.69,5.62192551]
[1641098343381,14.68169232,177.75,177.71,3.99523309]
[1641098344181,27.66479,177.76,177.69,5.62192551]
[1641098344682,2.69580614,177.75,177.72,3.99506318]
[1641098345586,2.69580614,177.75,177.69,5.62192551]
[1641098345784,27.66479,177.76,177.69,5.62192551]
[1641098346387,14.68135882,177.75,177.71,3.99515175]
[1641098347087,11.98508253,177.76,177.72,3.99502751]
[1641098347486,27.66479,177.75,177.72,3.99502751]
[1641098347687,27.66479,177.75,177.71,3.99510749]
[1641098348788,27.66479,177.75,177.69,5.62192551]
[1641098348990,2.69585487,177.74,177.69,5.62192551]
[1641098349389,33.18679,177.75,177.72,3.99506634]
[1641098349591,5.522,177.75,177.72,3.99506634]
[1641098349792,11.98536452,177.76,177.72,5.757]
[1641098349992,2.69574907,177.74,177.72,5.757]
[1641098350290,8.03374907,177.74,177.72,5.757]
[1641098350792,8.03374907,177.74,177.69,5.62192551]
[1641098351191,5.338,177.74,177.72,3.99508723]
[1641098351993,5.338,177.74,177.69,5.62192551]
[1641098352191,2.6958326,177.73,177.71,3.99516151]
[1641098352891,5.338,177.74,177.72,3.99505693]
[1641098353894,2.6957347,177.73,177.7,1.29926354]
[1641098354494,5.338,177.74,177.71,3.99518694]
[1641098355195,2.69614372,177.73,177.7,5.29459643]
[1641098355395,7.40814372,177.73,177.7,5.29459643]
[1641098355899,7.40814372,177.73,177.7,1.29922636]
[1641098356098,2.69605426,177.72,177.71,3.99528875]
[1641098357300,4.712,177.73,177.67,12.00662969]
[1641098357497,4.712,177.73,177.69,3.99551819]
[1641098358101,2.69652763,177.72,177.66,1.29919145]
[1641098358797,39.65134457,177.73,177.68,3.99571253]
[1641098359400,39.65134457,177.73,177.69,3.99563883]
[1641098359699,2.69643935,177.72,177.69,3.99563883]
[1641098360100,27.66479,177.73,177.66,1.29919948]
[1641098360602,30.66479,177.73,177.66,1.29919948]
[1641098360802,27.66479,177.73,177.66,1.29919948]
[1641098361006,11.98779572,177.71,177.67,3.99593191]
[1641098361602,12.55208097,177.72,177.66,1.29915778]
[1641098362403,12.55208097,177.72,177.67,3.99601551]
[1641098362605,11.98804654,177.71,177.67,3.99601551]
[1641098362906,2.69676174,177.72,177.65,5.62303194]
[1641098363206,14.68466142,177.72,177.68,3.99596656]
[1641098363606,14.68466142,177.72,177.65,5.62303194]
[1641098363806,20.27866142,177.72,177.65,5.62303194]
[1641098364508,2.69682285,177.71,177.68,3.99598747]
[1641098365212,11.98783435,177.72,177.65,5.62303194]
[1641098365810,27.66479,177.73,177.65,5.62303194]
[1641098366009,2.69670719,177.72,177.69,3.99588232]
[1641098366610,39.65243697,177.73,177.65,23.75805019]
[1641098367309,2.69667487,177.72,177.69,3.99585294]
[1641098367913,39.65243697,177.73,177.65,23.75805019]
[1641098368211,11.98764697,177.73,177.65,23.75805019]
[1641098368513,2.69667613,177.72,177.69,3.99585409]
[1641098369213,30.36146613,177.72,177.69,3.99585409]
[1641098369513,27.66479,177.72,177.65,17.62966163]
[1641098369713,44.74443697,177.72,177.68,3.99593987]
[1641098370213,2.6967705,177.71,177.66,1.29915979]
[1641098370815,11.98840879,177.71,177.67,3.99613626]
[1641098371415,32.75679,177.72,177.65,5.62303194]
[1641098371614,11.98853817,177.7,177.66,5.29532481]
[1641098372114,14.68538382,177.71,177.67,3.99611662]
[1641098372814,14.68538382,177.71,177.66,5.29530327]
[1641098373315,14.68538382,177.71,177.67,3.99609227]
[1641098374117,14.68538382,177.71,177.66,1.2991604]
[1641098375117,27.66479,177.72,177.67,3.99601503]
[1641098376222,27.66479,177.72,177.65,5.62303194]
[1641098376424,14.68487124,177.71,177.66,1.29916252]
[1641098376922,33.62979,177.72,177.67,3.99608369]
[1641098377721,14.68516656,177.71,177.66,1.29915532]
[1641098378421,14.68516656,177.71,177.67,3.99602005]
[1641098379123,27.66479,177.72,177.66,1.29916047]
[1641098379323,39.65287664,177.72,177.66,1.29916047]
[1641098380024,2.69687459,177.71,177.68,3.9960345]
[1641098380223,7.01387459,177.71,177.68,3.9960345]
[1641098380524,4.317,177.71,177.65,5.62303194]
[1641098380724,4.317,177.71,177.67,3.99606966]
[1641098381326,4.317,177.71,177.65,5.62303194]
[1641098381528,2.69689798,177.7,177.65,5.62303194]
[1641098381925,4.317,177.71,177.65,5.62303194]
[1641098382127,39.65287664,177.72,177.67,3.99394811]
[1641098383325,2.69544416,177.71,177.65,5.62303194]
[1641098383927,39.65287664,177.72,177.67,3.99390375]
[1641098384528,2.69545058,177.71,177.65,5.62303194]
[1641098385133,27.66479,177.72,177.68,3.99377853]
[1641098385932,2.69529463,177.71,177.65,5.62303194]
[1641098386431,27.66479,177.72,177.67,3.99376542]
[1641098386432,3.99376542,177.68,177.67,3.99376542]
[1641098387233,11.98808664,177.72,177.65,5.62303194]
[1641098387737,31.6155,177.74,177.66,12.00662969]
[1641098387738,3.99324023,177.71,177.66,12.00662969]
[1641098388535,3.99332293,177.7,177.69,3.99332293]
[1641098389135,3.99318138,177.71,177.67,32.82491973]
[1641098389434,3.99318138,177.71,177.67,1.29851973]
[1641098389836,43.60358664,177.74,177.7,3.99325864]
[1641098390637,14.67574696,177.73,177.68,3.99356073]
[1641098391336,14.67574696,177.73,177.65,36.20823194]
[1641098392037,2.69506478,177.73,177.7,3.99550701]
[1641098392637,11.98068218,177.73,177.69,3.99554659]
[1641098393237,2.69634255,177.73,177.66,1.29921266]
[1641098393937,43.60215003,177.74,177.7,3.99555001]
[1641098394540,2.69633679,177.73,177.66,19.43409799]
[1641098395240,43.60215003,177.74,177.7,3.99553678]
[1641098395740,71.26694003,177.74,177.66,13.30584235]
[1641098395941,14.6831297,177.73,177.69,3.99567549]
[1641098396640,59.28029,177.74,177.66,1.29921266]
[1641098397339,14.68366782,177.73,177.69,3.99571492]
[1641098397940,14.68366782,177.73,177.66,1.29919122]
[1641098398540,14.68366782,177.73,177.69,3.99572247]
[1641098399142,14.68366782,177.73,177.66,1.29919112]
[1641098399741,14.68366782,177.73,177.69,3.99571789]
[1641098400247,14.68366782,177.73,177.65,48.21486163]
[1641098400444,14.68366782,177.73,177.66,1.29919601]
[1641098400843,31.6155,177.74,177.66,1.29919601]
[1641098401044,31.6155,177.74,177.69,3.99567222]
[1641098401545,2.69071958,177.73,177.67,3.9871689]
[1641098402143,71.2417967,177.74,177.65,36.20823194]
[1641098402343,71.2417967,177.74,177.68,3.98713805]
[1641098402344,59.28029,177.74,177.68,3.98713805]
[1641098402849,2.69062705,177.73,177.66,1.29645773]
[1641098403548,59.28029,177.74,177.66,1.29645773]
[1641098403747,59.28029,177.74,177.68,3.98708204]
[1641098404351,2.69060599,177.73,177.66,1.29645773]
[1641098404852,31.6155,177.74,177.68,3.98706578]
[1641098405049,59.28029,177.74,177.68,3.98706578]
[1641098405454,3.98707213,177.71,177.66,1.29645773]
[1641098406452,59.28029,177.74,177.68,3.98707745]
[1641098407054,3.98710245,177.71,177.66,1.29645773]
[1641098407553,59.28029,177.74,177.66,1.29645773]
[1641098407756,59.28029,177.74,177.68,3.98707909]
[1641098408255,59.28029,177.74,177.66,1.29645773]
[1641098408454,3.98709965,177.71,177.66,1.29645773]
[1641098408854,3.98707648,177.72,177.68,3.98707648]
[1641098409456,59.28029,177.74,177.66,1.29645773]
[1641098409655,3.98718583,177.71,177.66,1.29645773]
[1641098410057,59.28029,177.74,177.68,3.98720597]
[1641098410355,31.6155,177.74,177.68,3.98720597]
[1641098410756,3.98719894,177.71,177.68,5.19]
[1641098411358,31.6155,177.74,177.68,9.17712267]
[1641098411858,2.69624092,177.73,177.7,3.99545844]
[1641098413063,11.98693555,177.73,177.69,3.99564518]
[1641098413460,2.69646244,177.73,177.66,1.29919738]
[1641098414159,43.60230686,177.74,177.69,3.99560229]
[1641098414661,43.60230686,177.74,177.66,1.29919738]
[1641098414860,2.69629103,177.73,177.7,3.99550399]
[1641098415665,31.6155,177.74,177.66,19.4340643]
[1641098416062,2.69632275,177.73,177.7,3.99553283]
[1641098416765,11.98689793,177.73,177.69,3.99563264]
[1641098417564,14.68309713,177.73,177.66,27.66479]
[1641098418164,14.68309713,177.73,177.69,3.99529837]
[1641098418765,14.68309713,177.73,177.66,27.66479]
[1641098418963,3.0,177.72,177.66,27.66479]
[1641098419366,2.6961992,177.71,177.69,3.99531454]
[1641098420067,3.0,177.72,177.68,3.99533366]
[1641098420969,3.0,177.72,177.67,1.29905702]
[1641098421170,2.69653907,177.71,177.67,1.29905702]
[1641098421769,11.98689793,177.71,177.67,3.9956785]
[1641098422469,2.69662323,177.71,177.67,1.29904937]
[1641098423271,11.98702966,177.71,177.67,3.99567655]
[1641098423873,3.0,177.72,177.65,36.20823194]
[1641098424073,2.6966318,177.71,177.66,1.29904859]
[1641098424475,2.6966318,177.71,177.66,28.96383859]
[1641098424775,2.6966318,177.71,177.67,3.99567595]
[1641098424776,11.98702784,177.71,177.67,3.99567595]
[1641098425377,2.6965715,177.71,177.67,1.29905407]
[1641098426178,14.98687671,177.72,177.65,36.20823194]
[1641098426379,6.45,177.71,177.67,3.99562444]
[1641098426779,6.45,177.71,177.65,36.20823194]
[1641098426980,2.69656755,177.7,177.66,1.29905443]
[1641098427682,3.99562623,177.68,177.67,3.99562623]
[1641098428181,14.98687671,177.72,177.66,27.66479]
[1641098428385,2.69642722,177.71,177.67,1.29906719]
[1641098429282,3.0,177.72,177.68,3.99551176]
[1641098429982,2.69629245,177.71,177.69,3.99537189]
[1641098430584,3.0,177.72,177.66,30.86177167]
[1641098430783,3.0,177.72,177.7,3.99508114]
[1641098431283,2.69624661,177.71,177.69,3.99546362]
[1641098431884,3.0,177.72,177.7,3.99549825]
[1641098432685,3.0,177.72,177.66,42.86840136]
[1641098432884,2.69628345,177.71,177.67,1.29921365]
[1641098433386,3.0,177.72,177.7,3.9955278]
[1641098433985,3.0,177.72,177.66,39.67141969]
[1641098434186,2.69630208,177.71,177.67,1.29921196]
[1641098434686,8.692,177.72,177.7,3.99550719]
[1641098435387,8.692,177.72,177.66,13.30584233]
[1641098435688,2.69628408,177.71,177.67,1.29921264]
[1641098436089,8.692,177.72,177.66,12.00662969]
[1641098436289,8.692,177.72,177.7,3.99545401]
[1641098436787,8.692,177.72,177.66,19.43406489]
[1641098437087,2.69630937,177.71,177.66,19.43406489]
[1641098437286,2.69630937,177.71,177.66,47.09885489]
[1641098437490,8.692,177.72,177.66,40.97063765]
[1641098437787,8.692,177.72,177.69,3.99186102]
[1641098438188,2.69387268,177.71,177.67,1.29921796]
[1641098438790,8.692,177.72,177.69,3.99186601]
[1641098439288,8.692,177.72,177.66,27.66479]
[1641098439489,2.69380144,177.71,177.67,1.29801581]
[1641098440489,8.619,177.72,177.68,3.99189037]
[1641098440990,2.69393501,177.71,177.66,30.86129927]
[1641098441190,2.69393501,177.71,177.67,1.29800367]
[1641098442090,8.619,177.72,177.68,3.99195958]
[1641098442892,2.69396776,177.71,177.67,1.29800069]
[1641098444397,8.619,177.72,177.68,3.99199133]
[1641098444995,3.99200896,177.7,177.66,1.29799664]
[1641098445296,3.99200896,177.7,177.66,28.96278664]
[1641098445799,8.619,177.72,177.68,3.9920115]
[1641098446799,8.619,177.72,177.66,27.66479]
[1641098447003,3.99202283,177.7,177.67,1.29799525]
[1641098447601,8.619,177.72,177.66,27.66479]
[1641098447801,3.99570361,177.69,177.65,48.21486163]
[1641098448000,3.99570361,177.69,177.65,17.62966163]
[1641098448199,8.619,177.72,177.65,17.62966163]
[1641098448400,2.69655149,177.71,177.66,1.29918928]
[1641098449000,3.99577002,177.69,177.65,23.75800527]
[1641098449602,36.28379,177.72,177.65,23.75800527]
[1641098449803,2.69658743,177.71,177.66,1.29918602]
[1641098450102,3.9957912,177.69,177.65,23.75800527]
[1641098451305,2.69660764,177.71,177.66,1.29918418]
[1641098451805,3.99589616,177.68,177.65,5.62303194]
[1641098452005,10.31489616,177.68,177.64,15.20336211]
[1641098452505,10.31489616,177.68,177.64,12.00662969]
[1641098452806,3.99642458,177.66,177.65,1.2991209]
[1641098453707,27.66479,177.67,177.62,19.43435249]
[1641098454508,27.66479,177.67,177.62,13.30574702]
[1641098454712,3.99645464,177.65,177.62,1.29911733]
[1641098455110,27.66479,177.67,177.62,1.29911733]
[1641098455808,3.99644666,177.65,177.62,1.29911733]
[1641098456712,27.66479,177.67,177.62,1.29911733]
[1641098457313,3.99647975,177.65,177.62,1.29911733]
[1641098457914,27.66479,177.67,177.62,1.29911733]